[Event "*** Titled Tuesday Blitz"]
[Site "Chess.com"]
[Date "2019.12.03"]
[Round "8"]
[White "vladimirdamjanovic"]
[Black "laboratorio25"]
[Result "1-0"]
[WhiteElo "2583"]
[BlackElo "2440"]
[TimeControl "180+2"]
[EndTime "14:54:31 PST"]
[Termination "vladimirdamjanovic won on time"]

1. Nf3 {[%clk 0:02:24.9]} 1... d5 {[%clk 0:02:56.8]} 2. e3 {[%clk 0:02:25]} 2...
Nf6 {[%clk 0:02:57.4]} 3. c4 {[%clk 0:02:25.7]} 3... c6 {[%clk 0:02:58.5]} 4.
Nc3 {[%clk 0:02:25.8]} 4... a6 {[%clk 0:02:57.5]} 5. d4 {[%clk 0:02:21.7]} 5...
b5 {[%clk 0:02:58]} 6. b3 {[%clk 0:02:17.4]} 6... Bg4 {[%clk 0:02:57.5]} 7. h3
{[%clk 0:02:18]} 7... Bxf3 {[%clk 0:02:58.2]} 8. Qxf3 {[%clk 0:02:19.9]} 8... e6
{[%clk 0:02:58.5]} 9. Bd2 {[%clk 0:02:05.7]} 9... Nbd7 {[%clk 0:02:53.4]} 10.
Be2 {[%clk 0:02:06.1]} 10... Bb4 {[%clk 0:02:30]} 11. Rc1 {[%clk 0:01:55.6]}
11... O-O {[%clk 0:02:27.2]} 12. O-O {[%clk 0:01:44]} 12... Ne4 {[%clk
0:02:26.7]} 13. Be1 {[%clk 0:01:39.3]} 13... Bxc3 {[%clk 0:02:26.4]} 14. Bxc3
{[%clk 0:01:41.2]} 14... Nxc3 {[%clk 0:02:27]} 15. Rxc3 {[%clk 0:01:43]} 15...
Qa5 {[%clk 0:02:22.4]} 16. Rc2 {[%clk 0:01:42]} 16... bxc4 {[%clk 0:02:21.7]}
17. bxc4 {[%clk 0:01:40.1]} 17... Rab8 {[%clk 0:02:23.2]} 18. cxd5 {[%clk
0:01:35.2]} 18... cxd5 {[%clk 0:02:23.8]} 19. Rfc1 {[%clk 0:01:36.4]} 19... Qa3
{[%clk 0:02:08.5]} 20. Bf1 {[%clk 0:01:36.9]} 20... Rb2 {[%clk 0:02:05.6]} 21.
Rxb2 {[%clk 0:01:35.3]} 21... Qxb2 {[%clk 0:02:05.4]} 22. Rc7 {[%clk 0:01:33.3]}
22... Nf6 {[%clk 0:02:04.2]} 23. Qe2 {[%clk 0:01:34.8]} 23... Qb6 {[%clk
0:01:51.7]} 24. Qc2 {[%clk 0:01:35.2]} 24... a5 {[%clk 0:01:45.1]} 25. a4 {[%clk
0:01:22.4]} 25... g6 {[%clk 0:01:43.7]} 26. Bb5 {[%clk 0:01:22.1]} 26... Ne4
{[%clk 0:01:41.2]} 27. Qc6 {[%clk 0:01:14.5]} 27... Qb8 {[%clk 0:01:23.6]} 28.
Qd7 {[%clk 0:01:14.2]} 28... Qb6 {[%clk 0:01:17.6]} 29. f3 {[%clk 0:01:06.7]}
29... Nd2 {[%clk 0:01:10]} 30. Kh2 {[%clk 0:00:45.3]} 30... Qb8 {[%clk 0:01:08]}
31. Kg1 {[%clk 0:00:41.6]} 31... Nc4 {[%clk 0:01:08.2]} 32. e4 {[%clk
0:00:34.8]} 32... Nb6 {[%clk 0:00:56.5]} 33. Qc6 {[%clk 0:00:29.8]} 33... Rc8
{[%clk 0:00:39.6]} 34. Rxc8+ {[%clk 0:00:30]} 34... Nxc8 {[%clk 0:00:34.7]} 35.
exd5 {[%clk 0:00:27.3]} 35... Ne7 {[%clk 0:00:28.6]} 36. Qc3 {[%clk 0:00:28]}
36... Nxd5 {[%clk 0:00:29.1]} 37. Qxa5 {[%clk 0:00:27.9]} 37... Qf4 {[%clk
0:00:26.7]} 38. Qe1 {[%clk 0:00:16.7]} 38... Qxd4+ {[%clk 0:00:23.1]} 39. Kh1
{[%clk 0:00:18.2]} 39... Qc5 {[%clk 0:00:18.8]} 40. Qg1 {[%clk 0:00:18.3]} 40...
Qb4 {[%clk 0:00:18.2]} 41. Qc1 {[%clk 0:00:16]} 41... Kg7 {[%clk 0:00:11.6]} 42.
Qa1+ {[%clk 0:00:16.4]} 42... f6 {[%clk 0:00:11]} 43. Qc1 {[%clk 0:00:17.4]}
43... Nc3 {[%clk 0:00:09.7]} 44. Qe1 {[%clk 0:00:16.4]} 44... e5 {[%clk
0:00:10.6]} 45. Bf1 {[%clk 0:00:15.6]} 45... Nd5 {[%clk 0:00:09.1]} 46. Qxb4
{[%clk 0:00:11.9]} 46... Nxb4 {[%clk 0:00:11]} 47. Bb5 {[%clk 0:00:09.7]} 47...
Nd5 {[%clk 0:00:02]} 48. a5 {[%clk 0:00:10.7]} 48... Nc7 {[%clk 0:00:03.1]} 49.
Bd3 {[%clk 0:00:12.4]} 1-0

[Event "*** Titled Tuesday Blitz"]
[Site "Chess.com"]
[Date "2019.12.03"]
[Round "8"]
[White "Konavets"]
[Black "Firouzja2003"]
[Result "0-1"]
[WhiteElo "2902"]
[BlackElo "3161"]
[TimeControl "180+2"]
[EndTime "14:54:33 PST"]
[Termination "Firouzja2003 won by resignation"]

1. e4 {[%clk 0:03:00.9]} 1... e5 {[%clk 0:02:59.1]} 2. Nf3 {[%clk 0:03:01.9]}
2... Nc6 {[%clk 0:02:58.8]} 3. Bc4 {[%clk 0:03:03.5]} 3... Bc5 {[%clk
0:02:50.4]} 4. O-O {[%clk 0:03:02]} 4... Nf6 {[%clk 0:02:50]} 5. d3 {[%clk
0:03:02.8]} 5... O-O {[%clk 0:02:50.6]} 6. c3 {[%clk 0:03:02.3]} 6... d6 {[%clk
0:02:50.7]} 7. a4 {[%clk 0:03:01.9]} 7... a5 {[%clk 0:02:48.1]} 8. Bg5 {[%clk
0:03:02.8]} 8... h6 {[%clk 0:02:42.3]} 9. Bh4 {[%clk 0:03:04.1]} 9... Bb6 {[%clk
0:02:42.7]} 10. Nbd2 {[%clk 0:03:03.5]} 10... Nb8 {[%clk 0:02:32.6]} 11. d4
{[%clk 0:03:01.5]} 11... Nbd7 {[%clk 0:02:33.5]} 12. Re1 {[%clk 0:02:58.1]}
12... Re8 {[%clk 0:02:31.5]} 13. Bd3 {[%clk 0:02:39.9]} 13... c6 {[%clk
0:02:24]} 14. Nc4 {[%clk 0:02:40.7]} 14... Bc7 {[%clk 0:02:25.1]} 15. Qc2 {[%clk
0:02:41.4]} 15... Nf8 {[%clk 0:02:24.5]} 16. Rad1 {[%clk 0:02:39.3]} 16... Ng6
{[%clk 0:02:24.9]} 17. Bg3 {[%clk 0:02:39.8]} 17... Nh5 {[%clk 0:02:22.9]} 18.
Ne3 {[%clk 0:02:00.5]} 18... Nhf4 {[%clk 0:02:09.3]} 19. Bc4 {[%clk 0:01:58.6]}
19... Qf6 {[%clk 0:02:09.3]} 20. Nf5 {[%clk 0:01:50.9]} 20... d5 {[%clk
0:01:56.5]} 21. dxe5 {[%clk 0:01:50.3]} 21... Nxe5 {[%clk 0:01:55.9]} 22. Nxe5
{[%clk 0:01:42.3]} 22... Bxe5 {[%clk 0:01:57]} 23. Ba2 {[%clk 0:01:04.1]} 23...
dxe4 {[%clk 0:01:38.3]} 24. Ne3 {[%clk 0:01:05.3]} 24... Nd3 {[%clk 0:01:31.4]}
25. Re2 {[%clk 0:00:53.7]} 25... Be6 {[%clk 0:01:22.3]} 26. Bxe6 {[%clk
0:00:54.3]} 26... Qxe6 {[%clk 0:01:19.9]} 27. Nf1 {[%clk 0:00:55.3]} 27... f5
{[%clk 0:01:10.2]} 28. f3 {[%clk 0:00:56.6]} 28... Bf6 {[%clk 0:01:00.1]} 29.
fxe4 {[%clk 0:00:49.5]} 29... fxe4 {[%clk 0:01:02]} 30. Nd2 {[%clk 0:00:50.3]}
30... Nc5 {[%clk 0:00:47.2]} 31. Rde1 {[%clk 0:00:51]} 31... Nd3 {[%clk
0:00:35.5]} 32. Qxd3 {[%clk 0:00:52]} 32... exd3 {[%clk 0:00:21.8]} 33. Rxe6
{[%clk 0:00:53]} 33... Rxe6 {[%clk 0:00:22.6]} 34. Rxe6 {[%clk 0:00:54.9]} 34...
Bg5 {[%clk 0:00:23.7]} 35. Be1 {[%clk 0:00:56.1]} 35... b5 {[%clk 0:00:20.8]}
36. h4 {[%clk 0:00:53.8]} 36... Bf4 {[%clk 0:00:19.4]} 37. Re4 {[%clk
0:00:52.9]} 37... Rf8 {[%clk 0:00:18.4]} 38. g3 {[%clk 0:00:52.5]} 38... Bc7
{[%clk 0:00:17.1]} 39. Kg2 {[%clk 0:00:53.5]} 39... Bb6 {[%clk 0:00:18]} 40. Nf3
{[%clk 0:00:49]} 40... bxa4 {[%clk 0:00:18.1]} 41. Re6 {[%clk 0:00:35.6]} 41...
Rb8 {[%clk 0:00:15.1]} 42. Ne5 {[%clk 0:00:32.6]} 42... Rd8 {[%clk 0:00:06.7]}
43. Bd2 {[%clk 0:00:32.7]} 43... Rd5 {[%clk 0:00:08]} 44. Nxc6 {[%clk
0:00:33.2]} 44... Rb5 {[%clk 0:00:09.1]} 45. Bc1 {[%clk 0:00:09.6]} 45... d2
{[%clk 0:00:08.2]} 46. Bxd2 {[%clk 0:00:10.4]} 46... Rxb2 {[%clk 0:00:09.7]} 47.
Re2 {[%clk 0:00:02.9]} 47... a3 {[%clk 0:00:10]} 48. Ne7+ {[%clk 0:00:04.3]}
48... Kh7 {[%clk 0:00:08]} 49. h5 {[%clk 0:00:05.1]} 49... a2 {[%clk 0:00:08.8]}
50. Ng6 {[%clk 0:00:06.5]} 50... a1=Q {[%clk 0:00:09.2]} 51. Re8 {[%clk
0:00:04.5]} 51... Rxd2+ {[%clk 0:00:10.6]} 52. Kh3 {[%clk 0:00:05.9]} 52... Rd8
{[%clk 0:00:11.9]} 0-1

[Event "*** Titled Tuesday Blitz"]
[Site "Chess.com"]
[Date "2019.12.03"]
[Round "8"]
[White "MathiasWomacka"]
[Black "kesarev"]
[Result "0-1"]
[WhiteElo "2332"]
[BlackElo "2487"]
[TimeControl "180+2"]
[EndTime "14:54:33 PST"]
[Termination "kesarev won by resignation"]

1. e4 {[%clk 0:01:59.2]} 1... g6 {[%clk 0:01:43.6]} 2. d4 {[%clk 0:01:59.5]}
2... Bg7 {[%clk 0:01:44.6]} 3. Nc3 {[%clk 0:02:01]} 3... c5 {[%clk 0:01:41.9]}
4. dxc5 {[%clk 0:02:00.5]} 4... Bxc3+ {[%clk 0:01:41.8]} 5. bxc3 {[%clk
0:02:01.3]} 5... Qa5 {[%clk 0:01:43.1]} 6. Qd4 {[%clk 0:01:58.5]} 6... Nf6
{[%clk 0:01:43.7]} 7. Bd3 {[%clk 0:01:30.3]} 7... Nc6 {[%clk 0:01:43.2]} 8. Qc4
{[%clk 0:01:31.5]} 8... d6 {[%clk 0:01:42.4]} 9. Ne2 {[%clk 0:01:25.3]} 9... Be6
{[%clk 0:01:42.5]} 10. Qb5 {[%clk 0:01:26.5]} 10... Qxb5 {[%clk 0:01:42.9]} 11.
Bxb5 {[%clk 0:01:27]} 11... Nxe4 {[%clk 0:01:42.4]} 12. cxd6 {[%clk 0:01:28.2]}
12... Nxd6 {[%clk 0:01:44.2]} 13. Bd3 {[%clk 0:01:29.2]} 13... f6 {[%clk
0:01:37.4]} 14. Bf4 {[%clk 0:01:17.4]} 14... O-O-O {[%clk 0:01:35.3]} 15. Nd4
{[%clk 0:01:06.1]} 15... Bd5 {[%clk 0:01:21.8]} 16. O-O {[%clk 0:00:51.9]} 16...
Na5 {[%clk 0:01:10.4]} 17. Nb3 {[%clk 0:00:43.5]} 17... Nac4 {[%clk 0:01:06.3]}
18. Bg3 {[%clk 0:00:21.4]} 18... e5 {[%clk 0:01:00.2]} 19. f3 {[%clk 0:00:22.2]}
19... Nb5 {[%clk 0:00:43.9]} 20. Bf2 {[%clk 0:00:16.3]} 20... b6 {[%clk
0:00:35.7]} 21. a4 {[%clk 0:00:17.4]} 21... Nxc3 {[%clk 0:00:36.4]} 22. a5
{[%clk 0:00:19.1]} 22... Kb7 {[%clk 0:00:32.6]} 23. axb6 {[%clk 0:00:19.5]}
23... axb6 {[%clk 0:00:33.5]} 24. Be1 {[%clk 0:00:18.9]} 24... Nb5 {[%clk
0:00:29.5]} 25. Bf2 {[%clk 0:00:20.2]} 25... Ra8 {[%clk 0:00:23.2]} 26. Rxa8
{[%clk 0:00:20.2]} 26... Rxa8 {[%clk 0:00:23.6]} 27. Rd1 {[%clk 0:00:20.9]}
27... Nc3 {[%clk 0:00:22.8]} 28. Re1 {[%clk 0:00:21.4]} 28... Ra2 {[%clk
0:00:21.8]} 29. f4 {[%clk 0:00:18.3]} 29... exf4 {[%clk 0:00:17.4]} 30. Re7+
{[%clk 0:00:18]} 30... Ka6 {[%clk 0:00:18.3]} 31. h4 {[%clk 0:00:17.2]} 31... h6
{[%clk 0:00:18.2]} 32. Nd4 {[%clk 0:00:17.6]} 32... Ra1+ {[%clk 0:00:13]} 33.
Kh2 {[%clk 0:00:18.2]} 33... Nd1 {[%clk 0:00:14.3]} 34. Bg1 {[%clk 0:00:17.8]}
34... Ne3 {[%clk 0:00:15.6]} 35. Ne6 {[%clk 0:00:18.2]} 35... Bxe6 {[%clk
0:00:16]} 36. Rxe6 {[%clk 0:00:18.9]} 36... Kb5 {[%clk 0:00:17.4]} 37. Bxe3
{[%clk 0:00:18.8]} 37... fxe3 {[%clk 0:00:17.9]} 38. Rxe3 {[%clk 0:00:19.9]}
38... Kc5 {[%clk 0:00:18]} 39. Re6 {[%clk 0:00:19.9]} 39... Ne5 {[%clk
0:00:18.8]} 40. Kg3 {[%clk 0:00:19.1]} 40... Nxd3 {[%clk 0:00:18.6]} 41. cxd3
{[%clk 0:00:19.5]} 41... Ra3 {[%clk 0:00:20.5]} 42. Rxf6 {[%clk 0:00:20.4]}
42... Rxd3+ {[%clk 0:00:21.6]} 43. Kf4 {[%clk 0:00:21.1]} 43... g5+ {[%clk
0:00:21.6]} 44. hxg5 {[%clk 0:00:21.8]} 44... hxg5+ {[%clk 0:00:23.5]} 45. Ke4
{[%clk 0:00:22.5]} 45... Rg3 {[%clk 0:00:24.4]} 46. Rf2 {[%clk 0:00:21.5]} 46...
b5 {[%clk 0:00:24.1]} 47. Rc2+ {[%clk 0:00:22.5]} 47... Kb4 {[%clk 0:00:25.1]}
48. Kd4 {[%clk 0:00:20.5]} 48... Kb3 {[%clk 0:00:24.9]} 49. Rf2 {[%clk
0:00:21.2]} 49... b4 {[%clk 0:00:25.4]} 50. Kc5 {[%clk 0:00:22.5]} 50... Kc3
{[%clk 0:00:25.6]} 51. Kb5 {[%clk 0:00:23.8]} 51... b3 {[%clk 0:00:26.3]} 52.
Ka4 {[%clk 0:00:25.1]} 52... b2 {[%clk 0:00:27.4]} 0-1

[Event "*** Titled Tuesday Blitz"]
[Site "Chess.com"]
[Date "2019.12.03"]
[Round "8"]
[White "vugarrasulov"]
[Black "Vuks91"]
[Result "0-1"]
[WhiteElo "2781"]
[BlackElo "2652"]
[TimeControl "180+2"]
[EndTime "14:54:35 PST"]
[Termination "Vuks91 won by resignation"]

1. e4 {[%clk 0:03:01.9]} 1... c6 {[%clk 0:03:00.4]} 2. d4 {[%clk 0:03:01.9]}
2... d5 {[%clk 0:03:01.5]} 3. Nc3 {[%clk 0:03:03.4]} 3... dxe4 {[%clk
0:03:02.5]} 4. Nxe4 {[%clk 0:03:05.3]} 4... Nf6 {[%clk 0:03:04.1]} 5. Nxf6+
{[%clk 0:03:06.1]} 5... exf6 {[%clk 0:03:06]} 6. Bc4 {[%clk 0:03:06.8]} 6...
Qe7+ {[%clk 0:03:03.4]} 7. Ne2 {[%clk 0:03:05.6]} 7... Qb4+ {[%clk 0:03:04.4]}
8. c3 {[%clk 0:02:59.6]} 8... Qxc4 {[%clk 0:03:04.2]} 9. O-O {[%clk 0:03:01.2]}
9... Be7 {[%clk 0:03:00.1]} 10. b3 {[%clk 0:02:56.7]} 10... Qd5 {[%clk
0:02:56.7]} 11. Nf4 {[%clk 0:02:57.6]} 11... Qd8 {[%clk 0:02:55.8]} 12. Nh5
{[%clk 0:02:47.3]} 12... O-O {[%clk 0:02:55.9]} 13. Re1 {[%clk 0:02:48.1]} 13...
Bf5 {[%clk 0:02:51.2]} 14. Qf3 {[%clk 0:02:47.4]} 14... Bg6 {[%clk 0:02:51.5]}
15. Nf4 {[%clk 0:02:48.8]} 15... Bd6 {[%clk 0:02:50.9]} 16. h4 {[%clk 0:02:49]}
16... Re8 {[%clk 0:02:21.9]} 17. Bd2 {[%clk 0:02:41.5]} 17... Bxf4 {[%clk
0:02:20.7]} 18. Bxf4 {[%clk 0:02:42]} 18... h5 {[%clk 0:02:19]} 19. g4 {[%clk
0:02:33.5]} 19... hxg4 {[%clk 0:02:14.3]} 20. Qxg4 {[%clk 0:02:35.4]} 20...
Rxe1+ {[%clk 0:01:52.4]} 21. Rxe1 {[%clk 0:02:35.8]} 21... Qd7 {[%clk
0:01:51.7]} 22. f3 {[%clk 0:02:22.1]} 22... Bf5 {[%clk 0:01:35.4]} 23. Qg3
{[%clk 0:02:13.9]} 23... Na6 {[%clk 0:01:30.1]} 24. Kh1 {[%clk 0:02:03.3]} 24...
Kh7 {[%clk 0:01:25.2]} 25. h5 {[%clk 0:02:01]} 25... c5 {[%clk 0:01:01.8]} 26.
Bd6 {[%clk 0:01:45.4]} 26... Re8 {[%clk 0:00:51.9]} 27. Rg1 {[%clk 0:01:43.6]}
27... g5 {[%clk 0:00:33.7]} 28. hxg6+ {[%clk 0:01:38.5]} 28... fxg6 {[%clk
0:00:30.4]} 29. dxc5 {[%clk 0:01:38.4]} 29... Kg7 {[%clk 0:00:30.6]} 30. Rd1
{[%clk 0:01:17.3]} 30... Qe6 {[%clk 0:00:29.8]} 31. Qf2 {[%clk 0:00:53.3]} 31...
Nb8 {[%clk 0:00:22.1]} 32. Bg3 {[%clk 0:00:31.8]} 32... Nc6 {[%clk 0:00:21.7]}
33. b4 {[%clk 0:00:33.2]} 33... a6 {[%clk 0:00:20.9]} 34. a4 {[%clk 0:00:34.6]}
34... Ne5 {[%clk 0:00:21.4]} 35. Re1 {[%clk 0:00:23.4]} 35... Qc6 {[%clk
0:00:19.5]} 36. Kg2 {[%clk 0:00:23.5]} 36... Nd3 {[%clk 0:00:17.1]} 37. Rxe8
{[%clk 0:00:19.4]} 37... Nxf2 {[%clk 0:00:18.1]} 38. Re7+ {[%clk 0:00:20.8]}
38... Kh6 {[%clk 0:00:13.5]} 39. Kxf2 {[%clk 0:00:20.7]} 39... g5 {[%clk
0:00:12.9]} 40. Bd6 {[%clk 0:00:18.4]} 40... g4 {[%clk 0:00:12.9]} 41. fxg4
{[%clk 0:00:19]} 41... Bxg4 {[%clk 0:00:13.8]} 42. Ke3 {[%clk 0:00:20.5]} 42...
Kg6 {[%clk 0:00:11.6]} 43. Re4 {[%clk 0:00:18.3]} 43... Bf5 {[%clk 0:00:12.6]}
44. Re7 {[%clk 0:00:11.8]} 44... Qd5 {[%clk 0:00:13.6]} 45. Kf2 {[%clk
0:00:10.9]} 45... Qd2+ {[%clk 0:00:14.3]} 46. Re2 {[%clk 0:00:10.2]} 46... Qxc3
{[%clk 0:00:15.2]} 47. b5 {[%clk 0:00:11.9]} 47... axb5 {[%clk 0:00:15.5]} 48.
axb5 {[%clk 0:00:13.8]} 48... Bd3 {[%clk 0:00:15.5]} 49. Re3 {[%clk 0:00:14.2]}
49... Qd2+ {[%clk 0:00:16.7]} 50. Kf3 {[%clk 0:00:15.8]} 50... Bxb5 {[%clk
0:00:16.7]} 51. Bf4 {[%clk 0:00:15.5]} 51... Bc6+ {[%clk 0:00:18.6]} 52. Kg3
{[%clk 0:00:15.8]} 52... Qd5 {[%clk 0:00:20.5]} 53. Kh4 {[%clk 0:00:16]} 53...
Qh1+ {[%clk 0:00:21.2]} 54. Rh3 {[%clk 0:00:16.6]} 54... Qe4 {[%clk 0:00:21.5]}
55. Rg3+ {[%clk 0:00:16.5]} 55... Kf5 {[%clk 0:00:21.8]} 56. Kh5 {[%clk
0:00:17.5]} 0-1

[Event "*** Titled Tuesday Blitz"]
[Site "Chess.com"]
[Date "2019.12.03"]
[Round "8"]
[White "Jadeit90"]
[Black "Filip_Covic"]
[Result "1/2-1/2"]
[WhiteElo "2304"]
[BlackElo "2457"]
[TimeControl "180+2"]
[EndTime "14:54:38 PST"]
[Termination "Game drawn - insufficient material"]

1. g3 {[%clk 0:02:50.4]} 1... d5 {[%clk 0:02:52.7]} 2. Bg2 {[%clk 0:02:51.7]}
2... Nf6 {[%clk 0:02:51.3]} 3. c4 {[%clk 0:02:53]} 3... e5 {[%clk 0:02:47.1]} 4.
cxd5 {[%clk 0:02:54]} 4... Nxd5 {[%clk 0:02:47.3]} 5. Nc3 {[%clk 0:02:55.3]}
5... Nb6 {[%clk 0:02:47.6]} 6. Nf3 {[%clk 0:02:56.7]} 6... Nc6 {[%clk
0:02:48.7]} 7. O-O {[%clk 0:02:57.9]} 7... Be7 {[%clk 0:02:49.5]} 8. a4 {[%clk
0:02:59.3]} 8... a5 {[%clk 0:02:46.5]} 9. d3 {[%clk 0:03:00.5]} 9... O-O {[%clk
0:02:45.9]} 10. Be3 {[%clk 0:03:01.8]} 10... Be6 {[%clk 0:02:38.3]} 11. d4
{[%clk 0:02:58.5]} 11... exd4 {[%clk 0:02:23.6]} 12. Nxd4 {[%clk 0:02:49.5]}
12... Nxd4 {[%clk 0:02:12.2]} 13. Bxd4 {[%clk 0:02:49.3]} 13... c6 {[%clk
0:02:10.6]} 14. Ne4 {[%clk 0:02:28]} 14... Nd5 {[%clk 0:01:56.5]} 15. Nc5 {[%clk
0:02:27.3]} 15... Bxc5 {[%clk 0:01:44.4]} 16. Bxc5 {[%clk 0:02:29.2]} 16... Re8
{[%clk 0:01:44.7]} 17. e4 {[%clk 0:02:21.3]} 17... Nb4 {[%clk 0:01:36.1]} 18.
Qe2 {[%clk 0:02:10]} 18... Qd3 {[%clk 0:01:35.1]} 19. Qxd3 {[%clk 0:01:49.3]}
19... Nxd3 {[%clk 0:01:37]} 20. Bd4 {[%clk 0:01:50.1]} 20... Rad8 {[%clk
0:01:20.2]} 21. Bc3 {[%clk 0:01:51.1]} 21... b6 {[%clk 0:01:13.8]} 22. Rfd1
{[%clk 0:01:50.9]} 22... Rd7 {[%clk 0:01:10.5]} 23. Rd2 {[%clk 0:01:51.9]} 23...
Red8 {[%clk 0:01:09.8]} 24. f4 {[%clk 0:01:52]} 24... f6 {[%clk 0:01:03]} 25. e5
{[%clk 0:01:41.7]} 25... fxe5 {[%clk 0:00:57.3]} 26. fxe5 {[%clk 0:01:42.5]}
26... c5 {[%clk 0:00:43.6]} 27. Bc6 {[%clk 0:01:43.4]} 27... Rc7 {[%clk
0:00:43.7]} 28. Bb5 {[%clk 0:01:44.6]} 28... c4 {[%clk 0:00:43.2]} 29. Rf1
{[%clk 0:01:38.6]} 29... Rf8 {[%clk 0:00:41.5]} 30. Rdd1 {[%clk 0:01:35.5]}
30... Rcf7 {[%clk 0:00:40.1]} 31. Bd4 {[%clk 0:01:30.4]} 31... Rxf1+ {[%clk
0:00:32]} 32. Rxf1 {[%clk 0:01:31]} 32... Rb8 {[%clk 0:00:32.3]} 33. Rd1 {[%clk
0:01:14.8]} 33... Nb4 {[%clk 0:00:30.1]} 34. Bc3 {[%clk 0:01:12.4]} 34... Kf7
{[%clk 0:00:28.9]} 35. Bd7 {[%clk 0:01:08.8]} 35... Nd5 {[%clk 0:00:26.1]} 36.
Bxe6+ {[%clk 0:01:07]} 36... Kxe6 {[%clk 0:00:28]} 37. Bd4 {[%clk 0:01:08.3]}
37... b5 {[%clk 0:00:27.8]} 38. axb5 {[%clk 0:01:08.6]} 38... Rxb5 {[%clk
0:00:29.7]} 39. Ra1 {[%clk 0:01:09.6]} 39... Nb4 {[%clk 0:00:28.6]} 40. Bc3
{[%clk 0:01:06.3]} 40... Nc6 {[%clk 0:00:27.8]} 41. Kf2 {[%clk 0:01:05.9]} 41...
Nxe5 {[%clk 0:00:26.9]} 42. Rxa5 {[%clk 0:01:01.3]} 42... Rxa5 {[%clk
0:00:27.2]} 43. Bxa5 {[%clk 0:01:03.2]} 43... Nd3+ {[%clk 0:00:28.9]} 44. Ke2
{[%clk 0:01:02.1]} 44... Nxb2 {[%clk 0:00:30.8]} 45. Bc3 {[%clk 0:01:03.1]}
45... Na4 {[%clk 0:00:31.5]} 46. Bxg7 {[%clk 0:01:04]} 46... Kf5 {[%clk
0:00:28]} 47. h3 {[%clk 0:00:56.8]} 47... Ke4 {[%clk 0:00:28.8]} 48. Bh6 {[%clk
0:00:55.7]} 48... c3 {[%clk 0:00:28.1]} 49. g4 {[%clk 0:00:56.8]} 49... Nc5
{[%clk 0:00:20.4]} 50. h4 {[%clk 0:00:57.3]} 50... Nb3 {[%clk 0:00:20.7]} 51. h5
{[%clk 0:00:51]} 51... c2 {[%clk 0:00:19.9]} 52. Be3 {[%clk 0:00:41.1]} 52...
Ke5 {[%clk 0:00:17.9]} 53. g5 {[%clk 0:00:39.1]} 53... Ke6 {[%clk 0:00:15.6]}
54. g6 {[%clk 0:00:39.8]} 54... c1=Q {[%clk 0:00:07.1]} 55. Bxc1 {[%clk
0:00:40]} 55... Nxc1+ {[%clk 0:00:08.1]} 56. Kd1 {[%clk 0:00:41.2]} 56... hxg6
{[%clk 0:00:08]} 57. hxg6 {[%clk 0:00:41.8]} 57... Kf6 {[%clk 0:00:09.4]} 58. g7
{[%clk 0:00:43.2]} 58... Kxg7 {[%clk 0:00:10.5]} 1/2-1/2

[Event "*** Titled Tuesday Blitz"]
[Site "Chess.com"]
[Date "2019.12.03"]
[Round "8"]
[White "Frolik67"]
[Black "ruvat"]
[Result "1/2-1/2"]
[WhiteElo "2529"]
[BlackElo "2388"]
[TimeControl "180+2"]
[EndTime "14:54:44 PST"]
[Termination "Game drawn by agreement"]

1. e4 {[%clk 0:03:01.7]} 1... d6 {[%clk 0:02:59.5]} 2. d4 {[%clk 0:03:00.2]}
2... Nf6 {[%clk 0:03:00]} 3. Nc3 {[%clk 0:02:59.4]} 3... g6 {[%clk 0:03:00.9]}
4. Nf3 {[%clk 0:02:57.5]} 4... Bg7 {[%clk 0:03:01.4]} 5. Be2 {[%clk 0:02:56.1]}
5... O-O {[%clk 0:03:01.6]} 6. O-O {[%clk 0:02:57.2]} 6... c6 {[%clk 0:03:02]}
7. Re1 {[%clk 0:02:57.2]} 7... Nbd7 {[%clk 0:03:00.8]} 8. h3 {[%clk 0:02:55.6]}
8... Qc7 {[%clk 0:02:56.3]} 9. Bf4 {[%clk 0:02:50.4]} 9... e5 {[%clk 0:02:55.7]}
10. Bh2 {[%clk 0:02:50.2]} 10... b5 {[%clk 0:02:43.3]} 11. a3 {[%clk 0:02:50.2]}
11... a6 {[%clk 0:02:40]} 12. Qd2 {[%clk 0:02:49.8]} 12... Bb7 {[%clk
0:02:37.5]} 13. Rad1 {[%clk 0:02:47.8]} 13... Rfe8 {[%clk 0:02:27.2]} 14. Bf1
{[%clk 0:02:40]} 14... Rad8 {[%clk 0:02:25.3]} 15. g4 {[%clk 0:02:37.7]} 15...
Nf8 {[%clk 0:02:01.8]} 16. Bg2 {[%clk 0:02:07.9]} 16... c5 {[%clk 0:01:49.5]}
17. d5 {[%clk 0:01:52.6]} 17... Bc8 {[%clk 0:01:35.4]} 18. Qe3 {[%clk
0:01:53.5]} 18... h6 {[%clk 0:01:29.1]} 19. Ne2 {[%clk 0:01:54.6]} 19... N6h7
{[%clk 0:01:22.5]} 20. Ng3 {[%clk 0:01:45.4]} 20... Qe7 {[%clk 0:01:14.6]} 21.
c4 {[%clk 0:01:33.4]} 21... bxc4 {[%clk 0:01:03.3]} 22. Bf1 {[%clk 0:01:31.4]}
22... Ng5 {[%clk 0:00:59.1]} 23. Nxg5 {[%clk 0:01:32.1]} 23... Qxg5 {[%clk
0:00:53.5]} 24. Qxg5 {[%clk 0:01:32.4]} 24... hxg5 {[%clk 0:00:55.4]} 25. Bxc4
{[%clk 0:01:34.1]} 25... Nd7 {[%clk 0:00:52.8]} 26. Nf1 {[%clk 0:01:23.6]} 26...
Nb6 {[%clk 0:00:48.5]} 27. Ne3 {[%clk 0:01:21.2]} 27... Re7 {[%clk 0:00:44.2]}
28. f3 {[%clk 0:01:16.8]} 28... Ra7 {[%clk 0:00:43.8]} 29. Rd2 {[%clk
0:01:15.6]} 29... Bd7 {[%clk 0:00:44.6]} 30. Rc1 {[%clk 0:01:12.5]} 30... Rb8
{[%clk 0:00:44.3]} 31. Kg2 {[%clk 0:01:08.1]} 31... Bf6 {[%clk 0:00:44.8]} 32.
Bg1 {[%clk 0:01:08.6]} 32... a5 {[%clk 0:00:41]} 33. Bf2 {[%clk 0:01:08.9]}
33... Kg7 {[%clk 0:00:39.4]} 34. Bf1 {[%clk 0:01:02.1]} 34... Na4 {[%clk
0:00:31.7]} 35. Nc4 {[%clk 0:01:01.5]} 35... Be7 {[%clk 0:00:30]} 36. Rcc2
{[%clk 0:00:57]} 36... Bb5 {[%clk 0:00:28.4]} 37. Be1 {[%clk 0:00:57.7]} 37...
Bxc4 {[%clk 0:00:21.7]} 38. Bxc4 {[%clk 0:00:59.6]} 38... Rab7 {[%clk
0:00:20.6]} 39. b3 {[%clk 0:00:59.9]} 39... Nb6 {[%clk 0:00:21.5]} 40. Rd3
{[%clk 0:00:59.1]} 40... Nxc4 {[%clk 0:00:21.3]} 41. bxc4 {[%clk 0:00:59.1]}
41... Rb2 {[%clk 0:00:19.7]} 42. Rf2 {[%clk 0:00:53.1]} 42... Rxf2+ {[%clk
0:00:19.7]} 43. Kxf2 {[%clk 0:00:55]} 43... Bd8 {[%clk 0:00:20.4]} 44. Ke2
{[%clk 0:00:54.2]} 44... a4 {[%clk 0:00:20.7]} 45. Bc3 {[%clk 0:00:49.3]} 45...
Rb3 {[%clk 0:00:20.8]} 46. Bd2 {[%clk 0:00:50.3]} 46... Rxd3 {[%clk 0:00:20.5]}
47. Kxd3 {[%clk 0:00:52.2]} 47... f6 {[%clk 0:00:21]} 48. Be1 {[%clk 0:00:50.9]}
48... Kf7 {[%clk 0:00:20.3]} 49. Ke2 {[%clk 0:00:51.4]} 49... Kg7 {[%clk
0:00:20.5]} 50. Kf2 {[%clk 0:00:52.9]} 50... Kf7 {[%clk 0:00:21.5]} 51. Kg3
{[%clk 0:00:54.2]} 51... Kg7 {[%clk 0:00:22.5]} 52. Bd2 {[%clk 0:00:55.9]} 52...
Kf7 {[%clk 0:00:22.4]} 53. h4 {[%clk 0:00:56.9]} 53... gxh4+ {[%clk 0:00:22.9]}
54. Kxh4 {[%clk 0:00:57.8]} 54... f5+ {[%clk 0:00:22.6]} 55. Bg5 {[%clk
0:00:56.6]} 55... Bxg5+ {[%clk 0:00:14.2]} 56. Kxg5 {[%clk 0:00:57.5]} 56...
fxe4 {[%clk 0:00:14.9]} 57. fxe4 {[%clk 0:00:54.3]} 57... Kg7 {[%clk 0:00:15.8]}
1/2-1/2